bitfinex-derivatives/quotes_SOLF0:USTF0_20250321
["timestamp","ask_amount","ask_price","bid_price","bid_amount"]
[1742594848607,0.0555422,128.66,128.64,7.7761]
[1742594848808,0.0555422,128.66,128.63,0.05918833]
[1742594849308,0.0555422,128.66,128.65,7.7759]
[1742594850604,0.0555422,128.66,128.63,0.05918833]
[1742594850605,0.0555422,128.66,128.63,7.83598833]
[1742594850798,0.0555422,128.66,128.63,0.05918833]
[1742594851204,7.7763,128.65,128.63,0.05918833]
[1742594852507,7.7763,128.65,128.63,7.83628833]
[1742594852707,0.0555422,128.66,128.63,0.05918833]
[1742594853105,0.0555422,128.66,128.63,29.19918833]
[1742594853408,0.0555422,128.66,128.65,7.7759]
[1742594858418,31.2011,128.72,128.69,7.773]
[1742594858616,38.9732,128.72,128.69,7.773]
[1742594859012,31.2011,128.72,128.68,7.7738]
[1742594859209,7.7734,128.7,128.67,29.06]
[1742594859412,0.05764926,128.71,128.69,0.05010073]
[1742594861115,7.83024926,128.71,128.69,0.05010073]
[1742594862417,7.7729,128.7,128.69,0.05010073]
[1742594865515,7.7729,128.7,128.67,36.8344]
[1742594865516,7.7752,128.67,128.62,4.0949]
[1742594865715,7.7752,128.67,128.63,28.96]
[1742594866019,7.7752,128.67,128.64,7.7763]
[1742594866622,7.7754,128.66,128.64,7.7763]
[1742594866818,0.05300097,128.67,128.64,0.05059924]
[1742594867019,0.05300097,128.67,128.64,28.99059924]
[1742594867214,7.7759,128.65,128.64,28.99059924]
[1742594868125,7.7759,128.65,128.64,0.05059924]
[1742594881928,7.7759,128.65,128.64,0.05059924]
[1742594882932,33.05968567,128.66,128.56,256.54]
[1742594883127,17.50898567,128.64,128.57,28.72]
[1742594883326,48.19718567,128.66,128.58,28.72]
[1742594883523,2.1473,128.67,128.59,17.50898567]
[1742594883728,2.1473,128.67,128.59,19.60698567]
[1742594884121,0.0518859,128.64,128.62,0.05464993]
[1742594884521,7.8286859,128.64,128.62,0.05464993]
[1742594884721,0.0518859,128.64,128.62,0.05464993]
[1742594885231,0.0518859,128.64,128.63,7.7771]
[1742594885627,0.0518859,128.64,128.62,0.05464993]
[1742594886726,0.0518859,128.64,128.62,7.83184993]
[1742594886932,0.0518859,128.64,128.62,0.05464993]
[1742594887132,7.8286859,128.64,128.62,0.05464993]
[1742594887326,0.0518859,128.64,128.62,0.05464993]
[1742594888233,0.0518859,128.64,128.63,7.7771]
[1742594889034,11.27878582,128.69,128.65,7.7754]
[1742594889236,11.27878582,128.69,128.65,36.4954]
[1742594889431,11.27878582,128.69,128.65,28.72]
[1742594889735,7.7744,128.68,128.65,28.72]
[1742594889934,7.7744,128.68,128.66,7.7751]
[1742594890236,0.05835619,128.68,128.66,0.05657392]
[1742594891638,0.05835619,128.68,128.67,7.7743]
[1742594893639,0.05835619,128.68,128.67,19.05308582]
[1742594893839,11.27878582,128.73,128.7,7.7726]
[1742594894038,11.27878582,128.74,128.7,28.66]
[1742594894440,11.27878582,128.74,128.71,7.772]
[1742594895140,7.82676923,128.74,128.71,7.83054244]
[1742594895439,17.60436138,128.72,128.71,0.05854244]
[1742594895637,17.60436138,128.72,128.68,256.52]
[1742594895638,7.7735,128.69,128.68,256.52]
[1742594903839,7.7741,128.68,128.67,0.0589819]
[1742594904437,46.19830782,128.7,128.67,28.6189819]
[1742594904438,0.05394644,128.7,128.67,28.6189819]
[1742594906346,7.7741,128.68,128.67,28.6189819]
[1742594908747,7.7741,128.68,128.67,0.0589819]
[1742594908943,25.37846138,128.68,128.67,8.19e-05]
[1742594915945,7.7741,128.68,128.67,8.19e-05]
[1742594917351,19.05120128,128.68,128.67,8.19e-05]
[1742594932967,7.7765,128.64,128.63,256.48]
[1742594933468,7.7775,128.63,128.6,47.37560128]
[1742594933669,7.7775,128.63,128.6,39.59710128]
[1742594934066,7.83240087,128.63,128.6,39.65090842]
[1742594934971,7.83240087,128.63,128.6,19.10960842]
[1742594935171,7.83240087,128.63,128.6,47.40960842]
[1742594935367,7.7779,128.62,128.6,19.10960842]
[1742594935572,7.7779,128.62,128.6,47.40960842]
[1742594935977,7.7779,128.62,128.6,39.63090842]
[1742594936363,0.05490087,128.63,128.6,39.63090842]
[1742594936565,7.7783,128.61,128.6,39.63090842]
[1742594937169,0.05490087,128.63,128.6,47.40970842]
[1742594937475,0.05490087,128.63,128.6,39.63090842]
[1742594938373,7.778,128.62,128.6,47.40980842]
[1742594939975,7.7783,128.61,128.6,28.35380714]
[1742594941480,7.7783,128.61,128.6,0.05380714]
[1742594941896,7.7781,128.62,128.6,0.05380714]
[1742594943681,7.83230087,128.63,128.6,7.83250714]
[1742594944681,7.83230087,128.63,128.61,7.7783]
[1742594947183,7.7777,128.62,128.6,7.83240714]
[1742594948075,7.83240087,128.63,128.6,7.83240714]
[1742594948880,7.778,128.62,128.6,7.83240714]
[1742594951588,7.83230087,128.63,128.61,7.7783]
[1742594952888,0.05490087,128.63,128.62,47.17480128]
[1742594958795,7.83200087,128.63,128.62,28.12]
[1742594958995,0.05490087,128.63,128.6,11.33090842]
[1742594959392,7.7783,128.61,128.6,11.33090842]
[1742594960489,39.33710128,128.61,128.55,32.463563]
[1742594960794,11.27710128,128.59,128.55,32.463563]
[1742594960995,28.22,128.58,128.55,32.463563]
[1742594961294,7.7814,128.56,128.55,32.463563]
[1742594962193,0.05515877,128.57,128.55,32.463563]
[1742594962793,7.7814,128.56,128.55,32.463563]
[1742594962990,10.83120274,128.56,128.55,32.463563]
[1742594964094,10.83120274,128.56,128.54,0.05820686]
[1742594964593,10.83120274,128.55,128.54,0.05820686]
[1742594970595,10.83120274,128.55,128.54,7.84080686]
[1742594979805,10.83120274,128.55,128.54,35.90080686]
[1742594980708,0.05515877,128.57,128.56,7.7814]
[1742594980908,0.05515877,128.57,128.56,19.05850128]
[1742594993117,4.11257647,128.57,128.56,19.05850128]
[1742594995819,4.11257647,128.57,128.56,7.7814]
[1742594999520,4.11257647,128.57,128.55,275.73880128]
[1742594999713,4.11257647,128.57,128.55,267.95710128]
[1742594999910,4.0574177,128.56,128.55,267.95710128]
[1742595000116,4.0574177,128.56,128.55,275.73910128]
[1742595001321,10.55825906,128.56,128.55,275.73910128]
[1742595002320,10.55825906,128.56,128.55,292.522]
[1742595002923,10.55825906,128.56,128.55,284.74]
[1742595003318,10.55825906,128.56,128.55,292.522]
[1742595006418,4.0574177,128.56,128.55,292.522]
[1742595007729,7.782,128.55,128.54,0.05820686]
[1742595008229,11.8394177,128.55,128.54,0.05820686]
[1742595009818,17.15234993,128.55,128.54,0.05820686]
[1742595010024,7.7839,128.52,128.5,284.7]
[1742595010324,4.0574177,128.55,128.5,284.7]
[1742595010524,4.0574177,128.51,128.5,284.7]
[1742595010730,4.0574177,128.51,128.5,292.485]
[1742595010925,4.0574177,128.51,128.5,284.7]
[1742595011227,4.0574177,128.51,128.5,284.72]
[1742595011622,11.8418177,128.51,128.5,256.66]
[1742595011826,17.15490516,128.51,128.5,284.72]
[1742595012126,9.37050516,128.51,128.5,284.72]
[1742595012823,9.37050516,128.51,128.5,256.66]
[1742595013032,9.37050516,128.51,128.49,0.05627553]
[1742595013326,9.37050516,128.5,128.49,0.05627553]
[1742595017034,9.37050516,128.5,128.49,11.33337681]
[1742595017826,9.37050516,128.5,128.49,19.11897681]
[1742595018133,9.37050516,128.5,128.49,47.17897681]
[1742595018329,4.0574177,128.5,128.49,47.17897681]
[1742595021937,4.0574177,128.5,128.49,19.11897681]
[1742595022233,4.0574177,128.5,128.49,7.84187553]
[1742595023926,2.18377028,128.52,128.49,7.84187553]
[1742595024235,5.29330682,128.51,128.49,7.84187553]
[1742595024426,3.95368643,128.51,128.49,7.84187553]
[1742595024834,2.18377028,128.52,128.5,7.785]
[1742595025134,5.29233755,128.51,128.5,7.785]
[1742595025637,3.95229047,128.51,128.5,7.785]
[1742595026539,9.24297211,128.51,128.5,7.785]
[1742595027431,3.95229047,128.51,128.5,7.785]
[1742595031233,3.95229047,128.51,128.5,35.845]
[1742595031738,0.05307028,128.52,128.51,7.7844]
[1742595032735,4.00583709,128.52,128.51,7.7844]
[1742595034728,4.00583709,128.52,128.5,35.8448]
[1742595035335,0.05307028,128.52,128.5,35.8448]
[1742595035936,0.05307028,128.52,128.51,7.7844]
[1742595036138,5.34644472,128.52,128.51,7.7844]
[1742595036640,4.00783412,128.52,128.51,7.7844]
[1742595037440,9.30249887,128.52,128.51,7.7844]
[1742595038647,4.00783412,128.52,128.51,7.7844]
[1742595039536,9.30506754,128.52,128.51,7.7844]
[1742595041841,9.30506754,128.52,128.5,7.7846]
[1742595042042,4.00783412,128.52,128.5,7.7846]
[1742595042438,3.95476384,128.51,128.5,7.7846]
[1742595043546,3.95476384,128.51,128.49,11.33337681]
[1742595043547,9.25651305,128.51,128.49,11.33337681]
[1742595043748,5.30174921,128.5,128.49,11.33337681]
[1742595044151,9.2577989,128.5,128.49,0.05627553]
[1742595044644,9.2577989,128.5,128.49,7.84187553]
[1742595045058,9.259744,128.5,128.49,0.05627553]
[1742595045253,9.259744,128.5,128.49,7.84187553]
[1742595045449,9.259744,128.5,128.49,0.05627553]
[1742595046255,3.95476384,128.5,128.49,7.84187553]
[1742595046760,9.26000154,128.5,128.49,7.84187553]
[1742595047162,9.26000154,128.5,128.49,0.05627553]
[1742595048264,17.04500154,128.5,128.49,0.05627553]
[1742595048861,9.26430116,128.5,128.49,0.05627553]
[1742595052264,17.04930116,128.5,128.49,0.05627553]
[1742595052465,9.26430116,128.5,128.49,0.05627553]
[1742595052667,17.05827149,128.5,128.49,0.05627553]
[1742595053467,9.27327149,128.5,128.49,0.05627553]
[1742595054569,9.27469096,128.5,128.49,0.05627553]
[1742595056371,9.27586359,128.5,128.49,0.05627553]
[1742595057473,9.27586359,128.5,128.49,7.84187553]
[1742595057680,9.27586359,128.5,128.49,19.11897681]
[1742595059276,9.27586359,128.5,128.49,0.05627553]
[1742595060279,9.27650638,128.5,128.49,7.84187553]
[1742595060480,9.27650638,128.5,128.49,19.11897681]
[1742595061577,9.3108957,128.5,128.49,19.11897681]
[1742595063183,9.3108957,128.5,128.49,0.05627553]
[1742595063374,3.95476384,128.5,128.49,0.05627553]
[1742595063573,9.31132612,128.5,128.49,0.05627553]
[1742595065179,20.5884274,128.5,128.49,0.05627553]
[1742595065386,20.5884274,128.5,128.46,39.47710128]
[1742595065387,7.7862,128.49,128.46,28.2]
[1742595065683,9.31132612,128.48,128.46,28.2]
[1742595065883,9.31132612,128.47,128.46,28.2]
[1742595067086,9.31132612,128.47,128.46,35.9874]
[1742595067386,9.30903459,128.47,128.46,35.9874]
[1742595067586,9.30903459,128.47,128.45,264.54056812]
[1742595067789,5.35427075,128.46,128.45,275.8176694]
[1742595067980,9.30903459,128.46,128.45,275.8176694]
[1742595069179,9.30903459,128.46,128.45,256.75306812]
[1742595069889,15.73009212,128.46,128.45,256.75306812]
[1742595070283,15.73009212,128.46,128.45,264.54106812]
[1742595071178,15.73009212,128.46,128.45,275.8181694]
[1742595076592,10.37582137,128.46,128.45,275.8181694]
[1742595076893,15.71979409,128.46,128.45,275.8181694]
[1742595078493,5.34397272,128.46,128.45,275.8181694]
[1742595078889,15.76191135,128.46,128.45,275.8181694]
[1742595081592,15.76191135,128.46,128.39,32.37455017]
[1742595081894,11.58417272,128.45,128.41,11.27710128]
[1742595082091,5.34397272,128.44,128.41,11.27710128]
[1742595082396,5.34397272,128.43,128.41,11.27710128]
[1742595082583,5.34397272,128.42,128.41,11.27710128]
[1742595082785,9.35087219,128.42,128.41,11.33692158]
[1742595083192,15.75411498,128.42,128.41,11.33692158]
[1742595083595,9.35087219,128.42,128.41,11.33692158]
[1742595084397,9.3427101,128.42,128.41,11.33692158]
[1742595084596,4.00689947,128.42,128.41,11.33692158]
[1742595084994,9.34085983,128.42,128.41,11.33692158]
[1742595085399,4.00689947,128.42,128.41,11.33692158]
[1742595086097,4.00689947,128.42,128.41,0.0598203]
[1742595086303,17.12897098,128.42,128.41,0.0598203]
[1742595086599,15.76383409,128.42,128.41,0.0598203]
[1742595086794,23.55373409,128.42,128.41,0.0598203]
[1742595087297,15.76383409,128.42,128.41,0.0598203]
[1742595088001,27.04093537,128.42,128.38,28.2]
[1742595088199,5.33217151,128.41,128.35,28.32]
[1742595088389,10.43166258,128.41,128.39,11.27710128]
[1742595088792,4.00689947,128.4,128.39,11.27710128]
[1742595090399,4.00689947,128.4,128.39,19.06880128]
[1742595090599,0.05761738,128.41,128.39,19.06880128]
[1742595094001,0.05761738,128.41,128.4,7.7911]
[1742595094399,0.05761738,128.41,128.4,19.06820128]
[1742595097510,11.27710128,128.48,128.43,11.27710128]
[1742595097807,5.31483148,128.47,128.44,28.28]
[1742595098009,5.31483148,128.46,128.44,28.28]
[1742595098202,10.40811671,128.47,128.44,28.28]
[1742595098409,5.31519334,128.46,128.44,28.28]
[1742595098709,10.40811671,128.46,128.44,28.33068337]
[1742595099110,4.00312181,128.45,128.44,28.33068337]
[1742595099913,20.59528564,128.45,128.44,28.33068337]
[1742595100205,34.78765727,128.45,128.44,0.05068337]
[1742595101610,23.51055599,128.45,128.44,0.05068337]
[1742595102113,15.72255599,128.45,128.44,0.05068337]
[1742595102908,23.51055599,128.45,128.44,0.05068337]
[1742595103108,15.72255599,128.45,128.44,0.05068337]
[1742595103310,23.51055599,128.45,128.44,0.05068337]
[1742595105613,15.72255599,128.45,128.44,0.05068337]
[1742595109016,15.72915509,128.45,128.44,7.83928337]
[1742595109514,15.72915509,128.45,128.44,0.05068337]
[1742595111314,15.72915509,128.45,128.44,7.83928337]
[1742595111717,15.72915509,128.45,128.44,0.05068337]
[1742595115420,23.51715509,128.45,128.44,0.05068337]
[1742595116623,23.52494104,128.45,128.44,0.05068337]
[1742595117326,15.73694104,128.45,128.44,0.05068337]
[1742595118527,15.738006,128.45,128.44,0.05068337]
[1742595118925,23.526006,128.45,128.44,0.05068337]
[1742595125145,15.738006,128.45,128.44,0.05068337]
[1742595126139,23.526006,128.45,128.44,0.05068337]
[1742595130144,34.80310728,128.45,128.44,0.05068337]
[1742595130739,34.80310728,128.45,128.44,0.00463337]
[1742595131346,24.39561384,128.45,128.44,0.00463337]
[1742595131647,34.84931468,128.45,128.44,0.00463337]
[1742595141246,7.7901,128.42,128.4,28.08]
[1742595141443,5.33051256,128.41,128.4,28.08]
[1742595141945,15.7842134,128.41,128.4,28.08]
[1742595142347,15.7842134,128.41,128.39,257.01018948]
[1742595142646,5.33051256,128.4,128.39,257.01018948]
[1742595143046,15.7842134,128.4,128.39,257.01018948]
[1742595146553,15.7842134,128.4,128.39,0.05018948]
[1742595149556,15.7842134,128.4,128.39,7.84188948]
[1742595149761,15.7842134,128.4,128.39,0.05018948]
[1742595154255,23.5753134,128.4,128.39,0.05018948]
[1742595154658,15.7842134,128.4,128.39,0.05018948]
[1742595155561,23.5753134,128.4,128.39,0.05018948]
[1742595156966,34.85241468,128.4,128.39,0.05018948]
[1742595157570,7.7921,128.39,128.37,28.08]
[1742595157867,5.33051256,128.38,128.37,28.08]
[1742595158166,5.33051256,128.38,128.35,264.754]
[1742595158365,5.33051256,128.37,128.36,28.08]
[1742595158564,9.35116673,128.37,128.36,28.08]
[1742595159167,15.78125112,128.37,128.36,28.08]
[1742595160066,9.35116673,128.37,128.36,28.08]
[1742595160471,9.35116673,128.37,128.35,256.96]
[1742595160764,5.33051256,128.36,128.35,285.04]
[1742595161265,15.77990144,128.36,128.35,285.04]
[1742595161671,15.78507778,128.36,128.35,285.04]
[1742595163859,15.78507778,128.36,128.35,256.96]
[1742595166170,9.35634307,128.36,128.35,256.96]
[1742595166371,9.35634307,128.36,128.33,35.875]
[1742595166671,4.07386016,128.36,128.33,35.875]
[1742595167476,0.05320599,128.36,128.33,35.875]
[1742595168263,0.05320599,128.36,128.34,7.7946]
[1742595168467,4.01348918,128.35,128.34,7.7946]
[1742595169063,4.01348918,128.35,128.33,47.15190128]
[1742595169768,0.05320599,128.36,128.33,47.15190128]
[1742595171170,4.01202242,128.35,128.33,47.15190128]
[1742595171768,7.84670599,128.36,128.33,47.15190128]
[1742595172868,5.32841511,128.35,128.33,28.1]
[1742595173072,5.32841511,128.34,128.33,28.1]
[1742595173274,4.01175376,128.35,128.33,28.1]
[1742595173666,7.84670599,128.36,128.33,28.1]
[1742595173667,4.01175376,128.34,128.33,28.1]
[1742595174775,9.33872732,128.34,128.33,28.1]
[1742595174974,9.33872732,128.34,128.33,35.8953]
[1742595175270,9.33872732,128.34,128.33,47.17240128]
[1742595175475,4.01175376,128.34,128.33,47.17240128]
[1742595175976,0.05320599,128.36,128.35,7.7941]
[1742595176175,5.38015132,128.36,128.35,19.07120128]
[1742595176372,15.80677966,128.36,128.35,19.07120128]
[1742595176776,10.47983433,128.36,128.35,19.07120128]
[1742595176978,15.80691385,128.36,128.35,19.07120128]
[1742595177475,7.08903433,128.36,128.35,19.07120128]
[1742595177675,13.31560128,128.42,128.37,7.7926]
[1742595177877,5.32821997,128.41,128.38,28.1]
[1742595178070,5.32821997,128.4,128.38,28.1]
[1742595178268,5.32821997,128.39,128.36,28.1]
[1742595178471,5.32821997,128.38,128.36,28.1]
[1742595178677,0.05435281,128.39,128.36,35.94862611]
[1742595178871,5.32873414,128.38,128.36,35.94862611]
[1742595179071,0.05435281,128.39,128.36,35.94862611]
[1742595179271,5.32874891,128.38,128.36,47.22572739]
[1742595179471,0.05435281,128.39,128.37,7.7929]
[1742595179674,5.3292695,128.38,128.37,7.7929]
[1742595179875,5.3292695,128.38,128.37,19.07000128]
[1742595180568,5.32955171,128.38,128.37,11.27710128]
[1742595181473,5.32955171,128.38,128.36,28.15522611]
[1742595181673,5.32955171,128.37,128.36,39.43232739]
[1742595181877,0.05435281,128.39,128.36,39.43232739]
[1742595182079,0.05435281,128.39,128.37,11.27710128]
[1742595182278,0.05435281,128.39,128.36,39.43232739]
[1742595183573,7.84615281,128.39,128.36,39.43232739]
[1742595183781,0.05435281,128.39,128.36,28.15522611]
[1742595184282,7.7926,128.38,128.36,28.15522611]
[1742595184974,0.05435281,128.39,128.36,28.15522611]
[1742595184975,7.7929,128.37,128.36,28.15522611]
[1742595185573,11.27710128,128.37,128.3,289.41455017]
[1742595185770,11.27710128,128.32,128.3,32.37455017]
[1742595185975,28.08,128.37,128.3,32.37455017]
[1742595185976,11.27710128,128.31,128.3,32.37455017]
[1742595186179,19.07360128,128.31,128.3,32.37455017]
[1742595187277,25.53837251,128.31,128.3,32.37455017]
[1742595187488,7.7971,128.3,128.29,74.85968878]
[1742595187782,11.27710128,128.3,128.29,74.85968878]
[1742595187974,17.74187251,128.3,128.29,74.85968878]
[1742595188885,17.74187251,128.3,128.25,296.43710128]
[1742595189078,17.74187251,128.3,128.26,19.07640128]
[1742595189277,0.0586954,128.29,128.26,19.07640128]
[1742595189776,4.03177202,128.28,128.26,19.07640128]
[1742595190275,0.0586954,128.29,128.27,7.7989]
[1742595190479,0.0586954,128.29,128.28,39.41710128]
[1742595190677,11.27710128,128.34,128.28,39.41710128]
[1742595190882,28.14,128.35,128.3,19.07410128]
[1742595190883,10.48058095,128.33,128.3,19.07410128]
[1742595191185,10.48058095,128.33,128.31,28.14]
[1742595191484,10.48058095,128.32,128.31,28.14]
[1742595191685,10.48058095,128.32,128.31,47.21360128]
[1742595192278,10.48058095,128.32,128.31,39.41710128]
[1742595192477,0.05576745,128.33,128.31,39.41710128]
[1742595193484,0.05576745,128.33,128.31,47.21360128]
[1742595194387,0.05576745,128.33,128.32,7.7959]
[1742595194582,0.05576745,128.33,128.32,19.07300128]
[1742595194887,11.27710128,128.39,128.32,11.27710128]
[1742595195086,5.35234122,128.38,128.34,11.27710128]
[1742595195284,5.35234122,128.37,128.35,28.12]
[1742595195485,5.35234122,128.36,128.35,28.12]
[1742595195685,5.35234122,128.36,128.35,35.914]
[1742595196083,15.83833042,128.36,128.35,35.914]
[1742595196387,15.83833042,128.36,128.35,47.19110128]
[1742595196583,7.2055892,128.36,128.35,47.19110128]
[1742595196985,0.05463212,128.37,128.36,7.7935]
[1742595197384,0.05463212,128.37,128.36,19.07060128]
[1742595197785,4.05916433,128.37,128.36,19.07060128]
[1742595198384,13.40690128,128.44,128.4,7.7905]
[1742595198590,5.35672942,128.43,128.4,47.16760128]
[1742595198790,5.35672942,128.42,128.4,47.16760128]
[1742595199090,5.35672942,128.41,128.4,28.1]
[1742595200693,5.35676434,128.41,128.4,28.1]
[1742595201591,5.35676434,128.41,128.4,39.37710128]
[1742595202089,5.35632414,128.41,128.4,39.37710128]
[1742595205389,0.05270587,128.42,128.4,39.37710128]
[1742595205691,5.34626475,128.41,128.4,28.1]
[1742595206196,0.05270587,128.42,128.4,28.1]
[1742595206597,0.05270587,128.42,128.4,39.37710128]
[1742595208089,0.05270587,128.42,128.4,47.16810128]
[1742595208497,0.05270587,128.42,128.4,39.37710128]
[1742595209598,0.05270587,128.42,128.41,11.27710128]
[1742595210607,4.01075205,128.42,128.41,19.06760128]
[1742595211203,0.05270587,128.42,128.41,19.06760128]
[1742595211502,7.7873,128.47,128.41,11.27710128]
[1742595211702,5.34074894,128.46,128.44,11.27710128]
[1742595212011,5.34074894,128.46,128.45,28.08]
[1742595212012,7.7874,128.46,128.45,28.08]
[1742595212303,17.08665326,128.46,128.45,28.08]
[1742595212996,9.29925326,128.46,128.45,28.08]
[1742595213505,9.29545678,128.46,128.45,28.08]
[1742595214198,3.9581485,128.46,128.45,28.08]
[1742595214605,17.08129281,128.46,128.45,28.08]
[1742595222609,11.7455485,128.46,128.45,28.08]
[1742595222809,7.7874,128.46,128.45,28.08]
[1742595223804,0.05441262,128.47,128.45,28.08]
[1742595224406,0.05441262,128.47,128.45,35.868]
[1742595224810,0.05441262,128.47,128.45,28.08]
[1742595225511,7.84151262,128.47,128.45,28.08]
[1742595226113,7.7874,128.46,128.45,28.08]
[1742595227618,7.84141262,128.47,128.45,28.08]
[1742595231613,7.7874,128.46,128.45,28.08]
[1742595233815,11.73952106,128.46,128.45,28.08]
[1742595234416,17.07735869,128.46,128.45,28.08]
[1742595236718,9.28995869,128.46,128.45,28.08]
[1742595238523,9.28995869,128.46,128.45,47.14510128]
[1742595238717,9.28995869,128.46,128.45,39.35710128]
[1742595240524,9.31385026,128.46,128.45,39.35710128]
[1742595241726,9.31747057,128.46,128.45,39.35710128]
[1742595242726,17.10487057,128.46,128.45,28.08]
[1742595243729,17.10988788,128.46,128.45,28.08]
[1742595243932,7.788,128.45,128.44,0.05298349]
[1742595244129,13.15836682,128.45,128.44,0.05298349]
[1742595244326,17.11048788,128.45,128.44,0.05298349]
[1742595244927,28.38758916,128.45,128.44,0.05298349]
[1742595245826,9.32248788,128.45,128.44,0.05298349]
[1742595247830,9.32248788,128.45,128.44,19.11868477]
[1742595248131,9.31894276,128.45,128.44,19.11868477]
[1742595249630,9.31894276,128.45,128.44,11.33008477]
[1742595250133,9.31894276,128.45,128.44,19.11868477]
[1742595251131,3.95212106,128.45,128.44,19.11868477]
[1742595251333,9.31721514,128.45,128.44,19.11868477]
[1742595253033,3.95212106,128.45,128.44,19.11868477]
[1742595253236,9.31829038,128.45,128.44,19.11868477]
[1742595254941,3.95212106,128.45,128.44,19.11868477]
[1742595255235,9.31912125,128.45,128.44,19.11868477]
[1742595256539,9.31912125,128.45,128.44,11.33008477]
[1742595257338,9.31912125,128.45,128.44,19.11868477]
[1742595258641,3.95212106,128.45,128.44,0.05298349]
[1742595258842,0.05441262,128.47,128.44,0.05298349]
[1742595259138,7.788,128.45,128.44,0.05298349]
[1742595259432,13.15009406,128.45,128.44,0.05298349]
[1742595259638,17.12351849,128.45,128.44,0.05298349]
[1742595262338,17.12165264,128.45,128.44,0.05298349]
[1742595262739,17.121077,128.45,128.44,0.05298349]
[1742595266444,28.39817828,128.45,128.44,0.05298349]
[1742595266841,28.39817828,128.45,128.44,8.349e-05]
[1742595267849,7.7899,128.42,128.41,284.98]
[1742595268037,5.35965257,128.42,128.41,284.98]
[1742595268241,9.333077,128.42,128.41,284.98]
[1742595268548,9.333077,128.42,128.41,292.7705]
[1742595269245,9.333077,128.42,128.41,284.98]
[1742595271349,9.333077,128.42,128.41,292.7705]
[1742595271947,9.333077,128.42,128.41,284.98]
[1742595272250,9.32670167,128.42,128.41,284.98]
[1742595273049,9.32670167,128.42,128.41,296.25710128]
[1742595273446,11.90438622,128.48,128.41,304.03710128]
[1742595273751,1.9715,128.51,128.47,11.27710128]
[1742595273941,9.7561,128.51,128.48,11.27710128]
[1742595274648,2.20971534,128.5,128.48,11.33214433]
[1742595275344,9.99471534,128.5,128.48,0.05504305]
[1742595276148,2.20971534,128.5,128.48,0.05504305]
[1742595276545,9.99481534,128.5,128.48,0.05504305]
[1742595280051,7.7856,128.49,128.48,0.05504305]
[1742595280941,47.11710128,128.49,128.41,256.92]
[1742595281142,11.27710128,128.45,128.41,256.92]
[1742595281550,7.7895,128.43,128.41,256.92]
[1742595282148,7.84459447,128.43,128.41,256.97841657]
[1742595283850,7.84459447,128.43,128.41,268.25551785]
[1742595284252,7.7899,128.42,128.41,268.25551785]
[1742595285358,13.11412619,128.42,128.41,268.25551785]
[1742595285858,17.03353152,128.42,128.41,268.25551785]
[1742595286556,9.24363152,128.42,128.41,268.25551785]
[1742595289057,17.03353152,128.42,128.41,268.25551785]
[1742595289452,17.03211031,128.42,128.41,268.25551785]
[1742595290156,9.24221031,128.42,128.41,268.25551785]
[1742595291460,9.24179078,128.42,128.41,268.25551785]
[1742595292158,17.03169078,128.42,128.41,268.25551785]
[1742595293254,17.0317738,128.42,128.41,268.25551785]
[1742595293456,17.03224005,128.42,128.41,268.25551785]
[1742595293863,17.03224005,128.42,128.41,11.33551785]
[1742595300861,17.03224005,128.42,128.41,39.39551785]
[1742595304065,17.04129394,128.42,128.41,39.39551785]
[1742595304569,9.25139394,128.42,128.41,39.39551785]
[1742595305367,17.04129394,128.42,128.41,39.39551785]
[1742595306867,17.04129394,128.42,128.41,28.11841657]
[1742595310268,9.25139394,128.42,128.41,39.39551785]
[1742595310568,13.27690128,128.48,128.41,39.39551785]
[1742595310867,13.27690128,128.48,128.44,11.27710128]
[1742595311069,1.9998,128.48,128.45,39.33710128]
[1742595311266,2.1596,128.5,128.47,11.27710128]
[1742595311461,9.945,128.5,128.47,11.27710128]
[1742595311863,10.00455281,128.5,128.47,11.33144093]
[1742595312968,7.7857,128.49,128.47,11.33144093]
[1742595313171,7.7857,128.49,128.47,0.05433965]
[1742595316068,7.7862,128.48,128.47,0.05433965]
[1742595322071,7.7862,128.48,128.47,11.33144093]
[1742595322270,0.05955281,128.5,128.47,11.33144093]
[1742595322466,0.05955281,128.5,128.49,11.27710128]
[1742595322663,5.18248106,128.5,128.49,39.31710128]
[1742595323170,9.0713089,128.5,128.49,39.31710128]
[1742595324063,9.0713089,128.5,128.49,47.10270128]
[1742595324770,3.94838065,128.5,128.49,47.10270128]
[1742595325371,3.94838065,128.5,128.49,39.31710128]
[1742595325571,3.94838065,128.5,128.48,11.27710128]
[1742595325766,3.94838065,128.5,128.49,28.04]
[1742595326068,9.06781021,128.5,128.49,28.04]